fUST/lending_fUST_20250920
["ID","MTS","AMOUNT","RATE_DAILY","PERIOD"]
[386537176,1758366662041,-500.0,0.00020973,2]
[386537177,1758366662070,-503.11710688,0.00020973,2]
[386537178,1758366662099,-500.0,0.00020973,2]
[386537179,1758366662127,-211.82496434,0.00020973,2]
[386537180,1758366662356,-288.17503566,0.00020973,2]
[386537181,1758366662485,-500.0,0.00020973,2]
[386537182,1758366662518,-500.0,0.00020973,2]
[386537183,1758366662547,-500.0,0.00020973,2]
[386537184,1758366662576,-332.86939886,0.00020973,2]
[386537185,1758366662605,-500.0,0.00020973,2]
[386537186,1758366662633,-502.34057584,0.00020973,2]
[386537187,1758366662662,-500.0,0.00020973,2]
[386537188,1758366662690,-431.83953464,0.00020973,2]
[386537189,1758366662718,-500.0,0.00020973,2]
[386537190,1758366662747,-389.56091,0.00020973,2]
[386537191,1758366662815,-110.43909,0.00020973,2]
[386537192,1758366662852,-500.0,0.00020973,2]
[386537193,1758366662880,-500.0,0.00020973,2]
[386537194,1758366662907,-502.04742883,0.00020973,2]
[386537195,1758366662937,-500.0,0.00020973,2]
[386537196,1758366662964,-313.40018798,0.00020973,2]
[386537197,1758366662993,-500.0,0.00020973,2]
[386537198,1758366663021,-500.0,0.00020973,2]
[386537199,1758366663049,-501.45647709,0.00020973,2]
[386537200,1758366663077,-376.17427947,0.00020973,2]
[386537201,1758366663109,-500.0,0.00020973,2]
[386537202,1758366663387,-500.0,0.00020973,2]
[386537203,1758366663416,-500.0,0.00020973,2]
[386537204,1758366663444,-503.15772695,0.00020973,2]
[386537205,1758366663474,-500.0,0.00020973,2]
[386537206,1758366663503,-500.0,0.00020973,2]
[386537207,1758366663534,-500.0,0.00020973,2]
[386537208,1758366663566,-341.27783645,0.00020973,2]
[386537209,1758366663599,-500.0,0.00020973,2]
[386537210,1758366663628,-500.0,0.00020973,2]
[386537211,1758366663657,-150.0,0.00020973,2]
[386537212,1758366663686,-156.764477,0.00020973,2]
[386537213,1758366663715,-151.0,0.00020973,2]
[386537214,1758366663745,-151.0,0.00020973,2]
[386537215,1758366667521,-102.40299033,0.00020973,2]
[386537216,1758366667535,-48.59700967,0.00020973,2]
[386537217,1758366667545,-151.581267,0.00020973,2]
[386537218,1758366667555,-141.09955978,0.00020973,2]
[386537219,1758366667569,-9.90044022,0.00020973,2]
[386537220,1758366667579,-151.0,0.00020973,2]
[386537221,1758366667588,-151.0,0.00020973,2]
[386537222,1758366667598,-151.0,0.00020973,2]
[386537223,1758366667607,-37.09955978,0.00020973,2]
[386537224,1758366667621,-135.44489122,0.00020973,2]
[386537225,1758366667631,-151.0,0.00020973,2]
[386537226,1758366667640,-151.0,0.00020973,2]
[386537227,1758366667650,-62.55510878,0.00020973,2]
[386537228,1758366667663,-106.22124222,0.00020973,2]
[386537229,1758366667672,-43.77875778,0.00020973,2]
[386537230,1758366667686,-107.22124222,0.00020973,2]
[386537231,1758366667696,-49.54323478,0.00020973,2]
[386537232,1758366667710,-101.45676522,0.00020973,2]
[386537233,1758366667719,-49.54323478,0.00020973,2]
[386537234,1758366667733,-101.45676522,0.00020973,2]
[386537235,1758366667743,-49.54323478,0.00020973,2]
[386537236,1758366667757,-93.6099192,0.00020973,2]
[386537237,1758366667824,-151.0,0.00020889,2]
[386537238,1758366667855,-500.0,0.00020973,2]
[386537239,1758366667885,-7.84684602,0.00020973,2]
[386537240,1758366667914,-151.0,0.00020973,2]
[386537241,1758366667944,-151.0,0.00020973,2]
[386537242,1758366667972,-151.0,0.00020973,2]
[386537243,1758366668000,-151.0,0.00020973,2]
[386537244,1758366668028,-151.0,0.00020973,2]
[386537245,1758366668056,-961.9702326,0.00020988,2]
[386537246,1758366668083,-480.0,0.00020988,2]
[386537247,1758366668111,-480.0,0.00020988,2]
[386537248,1758366668137,-480.0,0.00020988,2]
[386537249,1758366668262,-480.0,0.00020988,2]
[386537250,1758366668313,-1766.3769522,0.00020988,2]
[386537251,1758366668339,-151.0,0.00020988,2]
[386537252,1758366668366,-151.0,0.00020988,2]
[386537253,1758366668393,-151.0,0.00020988,2]
[386537254,1758366668421,-158.843802,0.00020988,2]
[386537255,1758366668449,-152.000428,0.00020988,2]
[386537256,1758366668478,-151.0,0.00020988,2]
[386537257,1758366668507,-213.950953,0.00020988,2]
[386537258,1758366668535,-151.0,0.00020988,2]
[386537259,1758366668563,-151.0,0.00020988,2]
[386537260,1758366668591,-151.433113,0.00020988,2]
[386537261,1758366668619,-480.0,0.00020988,2]
[386537262,1758366668646,-496.44546318,0.00020988,2]
[386537263,1758366668677,-528.14857724,0.00020988,2]
[386537264,1758366668812,-293.61142276,0.00020988,2]
[386537265,1758366668845,-480.0,0.00020988,2]
[386537266,1758366668875,-155.89302999,0.00020989,2]
[386537267,1758366668903,-323.87404249,0.00020989,2]
[386537268,1758366668933,-556.72643848,0.00020989,2]
[386537269,1758366668960,-481.89372087,0.00020989,2]
[386537270,1758366668989,-485.73007938,0.00020989,2]
[386537271,1758366669017,-151.0,0.00020989,2]
[386537272,1758366669045,-151.0,0.00020989,2]
[386537273,1758366669074,-546.82521168,0.00020989,2]
[386537274,1758366669102,-151.0,0.00020989,2]
[386537275,1758366669130,-232.995646,0.00020989,2]
[386537276,1758366669158,-152.347604,0.00020989,2]
[386537277,1758366669187,-151.0,0.00020989,2]
[386537278,1758366669217,-151.0,0.00020989,2]
[386537279,1758366669245,-151.0,0.00020989,2]
[386537280,1758366669274,-151.0,0.00020989,2]
[386537281,1758366669302,-151.0,0.00020989,2]
[386537282,1758366669330,-13.2156087,0.00020989,2]
[386537283,1758366669546,-137.7843913,0.00020989,2]
[386537284,1758366669575,-151.0,0.00020989,2]
[386537285,1758366669606,-151.0,0.00020989,2]
[386537286,1758366669635,-268.464948,0.00020989,2]
[386537287,1758366669667,-268.464948,0.00020989,2]
[386537288,1758366669695,-268.464948,0.00020989,2]
[386537289,1758366669724,-268.464948,0.00020989,2]
[386537290,1758366669754,-151.0,0.00020989,2]
[386537291,1758366669783,-151.0,0.00020989,2]
[386537292,1758366669813,-151.0,0.00020989,2]
[386537293,1758366669842,-157.066583,0.00020989,2]
[386537294,1758366669870,-157.066583,0.00020989,2]
[386537295,1758366669900,-157.066583,0.00020989,2]
[386537296,1758366669928,-157.066583,0.00020989,2]
[386537297,1758366669957,-151.0,0.00020989,2]
[386537298,1758366669985,-151.0,0.00020989,2]
[386537299,1758366670013,-261.924068,0.00020989,2]
[386537300,1758366670041,-151.0,0.00020989,2]
[386537301,1758366670067,-151.0,0.00020989,2]
[386537302,1758366670094,-151.0,0.00020989,2]
[386537303,1758366670122,-157.68525,0.00020989,2]
[386537304,1758366670150,-151.0,0.00020989,2]
[386537305,1758366670179,-480.0,0.00020989,2]
[386537306,1758366670206,-480.0,0.00020989,2]
[386537307,1758366670475,-480.0,0.00020989,2]
[386537308,1758366670505,-480.0,0.00020989,2]
[386537309,1758366670535,-480.0,0.00020989,2]
[386537310,1758366670564,-151.0,0.00020989,2]
[386537311,1758366670594,-483.94839084,0.00020989,2]
[386537312,1758366670624,-151.0,0.00020989,2]
[386537313,1758366670653,-332.751676,0.00020989,2]
[386537314,1758366670682,-151.0,0.00020989,2]
[386537315,1758366670711,-332.751676,0.00020989,2]
[386537316,1758366670739,-151.0,0.00020989,2]
[386537317,1758366670769,-332.751676,0.00020989,2]
[386537318,1758366670798,-332.751676,0.00020989,2]
[386537319,1758366670825,-151.0,0.00020989,2]
[386537320,1758366670857,-480.0,0.00020989,2]
[386537321,1758366670887,-480.0,0.00020989,2]
[386537322,1758366671064,-480.0,0.00020989,2]
[386537323,1758366671095,-480.0,0.00020989,2]
[386537324,1758366671123,-151.0,0.00020989,2]
[386537325,1758366671151,-151.449814,0.00020989,2]
[386537326,1758366671180,-151.0,0.00020989,2]
[386537327,1758366671208,-151.0,0.00020989,2]
[386537328,1758366671235,-151.0,0.00020989,2]
[386537329,1758366671264,-151.0,0.00020989,2]
[386537330,1758366671294,-151.0,0.00020989,2]
[386537331,1758366671322,-151.0,0.00020989,2]
[386537332,1758366671350,-151.0,0.00020989,2]
[386537333,1758366671380,-151.0,0.00020989,2]
[386537334,1758366671409,-151.0,0.00020989,2]
[386537335,1758366671436,-480.0,0.00020989,2]
[386537336,1758366671465,-480.0,0.00020989,2]
[386537337,1758366671492,-151.0,0.00020989,2]
[386537338,1758366671521,-151.0,0.00020989,2]
[386537339,1758366671549,-151.0,0.00020989,2]
[386537340,1758366671579,-480.0,0.00020989,2]
[386537341,1758366671608,-151.0,0.00020989,2]
[386537342,1758366671638,-151.0,0.00020989,2]
[386537343,1758366671666,-151.0,0.00020989,2]
[386537344,1758366671852,-151.0,0.00020989,2]
[386537345,1758366671882,-151.0,0.00020989,2]
[386537346,1758366671912,-480.0,0.00020989,2]
[386537347,1758366671941,-539.22397,0.00020989,2]
[386537348,1758366671970,-539.22397,0.00020989,2]
[386537349,1758366671998,-539.22397,0.00020989,2]
[386537350,1758366672029,-539.22397,0.00020989,2]
[386537351,1758366672058,-151.0,0.00020989,2]
[386537352,1758366672088,-151.0,0.00020989,2]
[386537353,1758366672116,-151.437878,0.00020989,2]
[386537354,1758366672144,-480.0,0.00020989,2]
[386537355,1758366672173,-151.0,0.00020989,2]
[386537356,1758366672201,-151.0,0.00020989,2]
[386537357,1758366672229,-151.0,0.00020989,2]
[386537358,1758366672258,-151.0,0.00020989,2]
[386537359,1758366672288,-250.461814,0.00020989,2]
[386537360,1758366672317,-151.0,0.00020989,2]
[386537361,1758366672344,-28.317232,0.00020989,2]
[386537362,1758366672459,-187.784392,0.00020989,2]
[386537363,1758366672488,-482.75257866,0.00020989,2]
[386537364,1758366672517,-151.0,0.00020989,2]
[386537365,1758366672545,-480.0,0.00020989,2]
[386537366,1758366672575,-480.0,0.00020989,2]
[386537367,1758366672709,-480.0,0.00020989,2]
[386537368,1758366672738,-151.0,0.00020989,2]
[386537369,1758366672768,-151.0,0.00020989,2]
[386537370,1758366672796,-480.0,0.00020989,2]
[386537371,1758366672825,-151.0,0.00020989,2]
[386537372,1758366672859,-151.0,0.00020989,2]
[386537373,1758366672890,-151.0,0.00020989,2]
[386537374,1758366672921,-480.0,0.00020989,2]
[386537375,1758366676370,-329.0,0.00020788,2]
[386537376,1758366676384,-151.0,0.00020788,2]
[386537377,1758366676394,-329.0,0.00020989,2]
[386537378,1758366676408,-151.0,0.00020989,2]
[386537379,1758366676426,-151.0,0.00020989,2]
[386537380,1758366676440,-480.0,0.00020989,2]
[386537381,1758366676455,-151.0,0.00020989,2]
[386537382,1758366676470,-151.0,0.00020989,2]
[386537383,1758366676484,-151.0,0.00020989,2]
[386537384,1758366676498,-480.0,0.00020989,2]
[386537385,1758366676513,-2046.93605868,0.00020989,2]
[386537386,1758366676530,-6679.60394132,0.00020989,2]
[386537387,1758366676540,-151.0,0.00020989,2]
[386537388,1758366676550,-151.0,0.00020989,2]
[386537389,1758366676560,-151.0,0.00020989,2]
[386537390,1758366676570,-151.0,0.00020989,2]
[386537391,1758366676579,-480.0,0.00020989,2]
[386537392,1758366676589,-391.9122,0.00020989,2]
[386537393,1758366676599,-391.9122,0.00020989,2]
[386537394,1758366676608,-391.9122,0.00020989,2]
[386537395,1758366676618,-391.9122,0.00020989,2]
[386537396,1758366676628,-151.0,0.00020989,2]
[386537397,1758366676638,-302.694988,0.00020989,2]
[386537398,1758366676648,-151.0,0.00020989,2]
[386537399,1758366676658,-64.06227068,0.00020989,2]
[386537400,1758366676684,-238.63271732,0.00020989,2]
[386537401,1758366676694,-302.694988,0.00020989,2]
[386537402,1758366676703,-302.694988,0.00020989,2]
[386537403,1758366676713,-480.0,0.00020989,2]
[386537404,1758366676722,-151.0,0.00020989,2]
[386537405,1758366676732,-158.694397,0.00020989,2]
[386537406,1758366676741,-151.0,0.00020989,2]
[386537407,1758366676751,-151.0,0.00020989,2]
[386537408,1758366676761,-152.062378,0.00020989,2]
[386537409,1758366676771,-270.659813,0.00020989,2]
[386537410,1758366676781,-152.93940073,0.00020989,2]
[386537411,1758366676791,-151.0,0.00020989,2]
[386537412,1758366676800,-151.0,0.00020989,2]
[386537413,1758366676810,-151.0,0.00020989,2]
[386537414,1758366676820,-151.0,0.00020989,2]
[386537415,1758366676830,-210.93479,0.00020989,2]
[386537416,1758366676846,-210.93479,0.00020989,2]
[386537417,1758366676856,-210.93479,0.00020989,2]
[386537418,1758366676866,-210.93479,0.00020989,2]
[386537419,1758366676875,-934.54,0.00020989,2]
[386537420,1758366676886,-151.0,0.00020989,2]
[386537421,1758366676896,-163.374669,0.00020989,2]
[386537422,1758366676906,-163.374669,0.00020989,2]
[386537423,1758366676919,-163.374669,0.00020989,2]
[386537424,1758366676929,-163.374669,0.00020989,2]
[386537425,1758366676939,-423.823541,0.00020989,2]
[386537426,1758366676949,-423.823541,0.00020989,2]
[386537427,1758366676958,-423.823541,0.00020989,2]
[386537428,1758366676968,-423.823541,0.00020989,2]
[386537429,1758366676978,-151.0,0.00020989,2]
[386537430,1758366676987,-151.0,0.00020989,2]
[386537431,1758366676997,-268.711948,0.00020989,2]
[386537432,1758366677007,-151.0,0.00020989,2]
[386537433,1758366677018,-151.0,0.00020989,2]
[386537434,1758366677027,-1733.84736995,0.0002099,2]
[386537435,1758366677664,-160.0,0.00020889,2]
[386537436,1758366677699,-9680.01,0.0002099,2]
[386537437,1758366677843,-10000.01,0.0002099,2]
[386537438,1758366677982,-10000.01,0.0002099,2]
[386537439,1758366678160,-10000.01,0.0002099,2]
[386537440,1758366678343,-10000.01,0.0002099,2]
[386537441,1758366678516,-10000.01,0.0002099,2]
[386537442,1758366678719,-2675.96736995,0.0002099,2]
[386537443,1758366678745,-4648.0752601,0.0002099,2]
[386537444,1758366678923,-151.0,0.0002099,2]
[386537445,1758366678955,-151.0,0.0002099,2]
[386537446,1758366678985,-151.0,0.0002099,2]
[386537447,1758366679015,-151.0,0.0002099,2]
[386537448,1758366679046,-151.0,0.0002099,2]
[386537449,1758366679077,-151.0,0.0002099,2]
[386537450,1758366679106,-151.905352,0.0002099,2]
[386537451,1758366679134,-151.0,0.0002099,2]
[386537452,1758366679165,-151.0,0.0002099,2]
[386537453,1758366679195,-156.245975,0.0002099,2]
[386537454,1758366679224,-268.464948,0.0002099,2]
[386537455,1758366679253,-268.464948,0.0002099,2]
[386537456,1758366679283,-268.464948,0.0002099,2]
[386537457,1758366679312,-268.464948,0.0002099,2]
[386537458,1758366679341,-151.0,0.0002099,2]
[386537459,1758366679369,-151.0,0.0002099,2]
[386537460,1758366679398,-151.0,0.0002099,2]
[386537461,1758366679428,-157.066583,0.0002099,2]
[386537462,1758366679457,-157.066583,0.0002099,2]
[386537463,1758366679486,-157.066583,0.0002099,2]
[386537464,1758366679515,-157.066583,0.0002099,2]
[386537465,1758366679544,-151.0,0.0002099,2]
[386537466,1758366679573,-151.0,0.0002099,2]
[386537467,1758366679602,-151.0,0.0002099,2]
[386537468,1758366679632,-152.277314,0.0002099,2]
[386537469,1758366679663,-151.0,0.0002099,2]
[386537470,1758366679693,-151.0,0.0002099,2]
[386537471,1758366679722,-151.0,0.0002099,2]
[386537472,1758366679751,-151.0,0.0002099,2]
[386537473,1758366680064,-332.751676,0.0002099,2]
[386537474,1758366680095,-151.0,0.0002099,2]
[386537475,1758366680125,-332.751676,0.0002099,2]
[386537476,1758366680154,-151.0,0.0002099,2]
[386537477,1758366680184,-332.751676,0.0002099,2]
[386537478,1758366680213,-332.751676,0.0002099,2]
[386537479,1758366680246,-151.0,0.0002099,2]
[386537480,1758366680275,-151.0,0.0002099,2]
[386537481,1758366680305,-151.0,0.0002099,2]
[386537482,1758366680334,-151.0,0.0002099,2]
[386537483,1758366680364,-239.696696,0.0002099,2]
[386537484,1758366680393,-151.0,0.0002099,2]
[386537485,1758366680423,-161.680374,0.0002099,2]
[386537486,1758366680455,-151.0,0.0002099,2]
[386537487,1758366680485,-151.0,0.0002099,2]
[386537488,1758366680514,-151.0,0.0002099,2]
[386537489,1758366680544,-260.19703,0.0002099,2]
[386537490,1758366680574,-151.0,0.0002099,2]
[386537491,1758366680604,-151.0,0.0002099,2]
[386537492,1758366680634,-151.0,0.0002099,2]
[386537493,1758366680664,-151.0,0.0002099,2]
[386537494,1758366680693,-151.0,0.0002099,2]
[386537495,1758366680723,-151.0,0.0002099,2]
[386537496,1758366680754,-151.0,0.0002099,2]
[386537497,1758366680783,-151.0,0.0002099,2]
[386537498,1758366680812,-39.624422,0.0002099,2]
[386537499,1758366680941,-499.599548,0.0002099,2]
[386537500,1758366680965,-539.22397,0.0002099,2]
[386537501,1758366680990,-539.22397,0.0002099,2]
[386537502,1758366681026,-539.22397,0.0002099,2]
[386537503,1758366681055,-151.0,0.0002099,2]
[386537504,1758366681083,-151.0,0.0002099,2]
[386537505,1758366681111,-151.0,0.0002099,2]
[386537506,1758366681139,-151.0,0.0002099,2]
[386537507,1758366681168,-151.0,0.0002099,2]
[386537508,1758366681196,-151.0,0.0002099,2]
[386537509,1758366681225,-151.0,0.0002099,2]
[386537510,1758366681255,-151.0,0.0002099,2]
[386537511,1758366681284,-151.0,0.0002099,2]
[386537512,1758366681314,-151.0,0.0002099,2]
[386537513,1758366681342,-151.0,0.0002099,2]
[386537514,1758366681371,-151.0,0.0002099,2]
[386537515,1758366681400,-151.0,0.0002099,2]
[386537516,1758366681428,-244.846614,0.0002099,2]
[386537517,1758366681457,-151.0,0.0002099,2]
[386537518,1758366681486,-391.9122,0.0002099,2]
[386537519,1758366682066,370000.0,0.00020689,2]
[386537520,1758366682999,-64.77603,0.0002099,2]
[386537521,1758366683012,-244.846614,0.0002099,2]
[386537522,1758366683025,-82.289556,0.0002099,2]
[386537523,1758366683034,-68.710444,0.0002099,2]
[386537524,1758366683048,-323.201756,0.0002099,2]
[386537525,1758366683057,-68.710444,0.0002099,2]
[386537526,1758366683071,-263.949456,0.0002099,2]
[386537527,1758366687895,-480.0,0.00020787,2]
[386537528,1758366687925,-59.2523,0.0002099,2]
[386537529,1758366687953,-194.501244,0.0002099,2]
[386537530,1758366687983,-302.694988,0.0002099,2]
[386537531,1758366688012,-151.0,0.0002099,2]
[386537532,1758366688041,-302.694988,0.0002099,2]
[386537533,1758366688071,-302.694988,0.0002099,2]
[386537534,1758366688102,-302.694988,0.0002099,2]
[386537535,1758366688132,-151.0,0.0002099,2]
[386537536,1758366688161,-151.0,0.0002099,2]
[386537537,1758366688190,-1000.0,0.0002099,2]
[386537538,1758366688221,-1000.0,0.0002099,2]
[386537539,1758366688249,-204.943008,0.0002099,2]
[386537540,1758366688359,-795.056992,0.0002099,2]
[386537541,1758366688389,-1000.0,0.0002099,2]
[386537542,1758366688417,-1000.0,0.0002099,2]
[386537543,1758366688446,-1000.0,0.0002099,2]
[386537544,1758366688475,-1000.0,0.0002099,2]
[386537545,1758366688585,-1000.0,0.0002099,2]
[386537546,1758366688614,-1000.0,0.0002099,2]
[386537547,1758366688644,-1000.0,0.0002099,2]
[386537548,1758366688771,-1000.0,0.0002099,2]
[386537549,1758366688802,-1000.0,0.0002099,2]
[386537550,1758366689025,-204.953008,0.0002099,2]
[386537551,1758366689045,-298.540008,0.0002099,2]
[386537552,1758366689055,-151.0,0.0002099,2]
[386537553,1758366689064,-151.0,0.0002099,2]
[386537554,1758366689073,-151.0,0.0002099,2]
[386537555,1758366689083,-199.224604,0.0002099,2]
[386537556,1758366689093,-49.235388,0.0002099,2]
[386537557,1758366689108,-0.01,0.0002099,2]
[386537558,1758366703457,1075.20842138,0.000199,2]
[386537559,1758366707636,-480.0,0.00020787,2]
[386537560,1758366707665,-732.75,0.00020788,2]
[386537561,1758366707694,-480.0,0.00020788,2]
[386537562,1758366707721,-480.0,0.00020788,2]
[386537563,1758366707853,-480.0,0.00020788,2]
[386537564,1758366707883,-860.96,0.00020788,2]
[386537565,1758366707915,-201.72561784,0.00020788,2]
[386537566,1758366707944,-500.0,0.00020788,2]
[386537567,1758366707972,-500.0,0.00020788,2]
[386537568,1758366708000,-152.56989661,0.00020788,2]
[386537569,1758366708101,-500.0,0.00020788,2]
[386537570,1758366708131,-500.0,0.00020788,2]
[386537571,1758366708158,-623.85467772,0.00020788,2]
[386537572,1758366708186,-500.0,0.00020788,2]
[386537573,1758366708215,-500.0,0.00020788,2]
[386537574,1758366708244,-500.0,0.00020788,2]
[386537575,1758366708275,-500.0,0.00020788,2]
[386537576,1758366708302,-500.0,0.00020788,2]
[386537577,1758366708332,-500.0,0.00020788,2]
[386537578,1758366708360,-119.26651516,0.00020788,2]
[386537579,1758366708421,-513.76761424,0.00020788,2]
[386537580,1758366708451,-500.0,0.00020788,2]
[386537581,1758366708480,-500.0,0.00020788,2]
[386537582,1758366708510,-500.0,0.00020788,2]
[386537583,1758366708539,-500.0,0.00020788,2]
[386537584,1758366708570,-500.0,0.00020788,2]
[386537585,1758366708599,-193.13946834,0.00020788,2]
[386537586,1758366708630,-167.587738,0.00020788,2]
[386537587,1758366708661,-477.09765456,0.00020788,2]
[386537588,1758366708691,-500.0,0.00020788,2]
[386537589,1758366708722,-500.0,0.00020788,2]
[386537590,1758366709284,-286.94603702,0.00020788,2]
[386537591,1758366709303,-213.05396298,0.00020788,2]
[386537592,1758366709312,-286.94603702,0.00020887,2]
[386537593,1758366709326,-193.05396298,0.00020887,2]
[386537594,1758366709335,-103.77108674,0.00020889,2]
[386537596,1758366717679,-480.0,0.00020788,2]
[386537597,1758366717708,-500.0,0.00020788,2]
[386537598,1758366717736,-500.0,0.00020788,2]
[386537599,1758366717764,-501.02722231,0.00020788,2]
[386537600,1758366717792,-401.61548066,0.00020788,2]
[386537601,1758366717820,-500.0,0.00020788,2]
[386537602,1758366717851,-500.0,0.00020788,2]
[386537603,1758366717879,-500.0,0.00020788,2]
[386537604,1758366717908,-500.0,0.00020788,2]
[386537605,1758366717936,-501.85842563,0.00020788,2]
[386537606,1758366718063,-500.0,0.00020788,2]
[386537607,1758366718091,-623.15015381,0.00020788,2]
[386537608,1758366718120,-500.0,0.00020788,2]
[386537609,1758366718146,-343.72902994,0.00020788,2]
[386537610,1758366718173,-626.64564807,0.00020788,2]
[386537611,1758366718201,-480.0,0.00020887,2]
[386537612,1758366718229,-376.22891326,0.00020889,2]
[386537613,1758366718256,-961.00415217,0.00020962,2]
[386537614,1758366718287,-103.28578432,0.00020972,2]
[386537615,1758366718626,-176.13533955,0.00020787,2]
[386537616,1758366718644,-1023.99466045,0.00020787,2]
[386537617,1758366718653,-51.21376073,0.00020788,2]
[386537619,1758366726631,503.32,0.0001933,2]
[386537620,1758366727059,1006.63,0.0002025,2]
[386537621,1758366727724,-480.0,0.00020787,2]
[386537622,1758366727757,-480.0,0.00020787,2]
[386537623,1758366727787,-428.78623927,0.00020788,2]
[386537624,1758366727816,-480.0,0.00020788,2]
[386537625,1758366727847,-480.0,0.00020788,2]
[386537626,1758366727879,-480.0,0.00020885,2]
[386537627,1758366727908,-480.0,0.00020887,2]
[386537628,1758366727938,-486.46179726,0.00020889,2]
[386537629,1758366727968,-971.92263686,0.00020972,2]
[386537630,1758366727996,-169.538,0.00020989,2]
[386537631,1758366728105,-480.0,0.00020989,2]
[386537632,1758366728134,-300.0,0.00020989,2]
[386537633,1758366728164,-161.689402,0.0002099,2]
[386537634,1758366728195,-210.93479,0.0002099,2]
[386537635,1758366728224,-210.93479,0.0002099,2]
[386537636,1758366728254,-210.93479,0.0002099,2]
[386537637,1758366728284,-151.0,0.0002099,2]
[386537638,1758366728312,-163.374669,0.0002099,2]
[386537639,1758366728341,-163.374669,0.0002099,2]
[386537640,1758366728369,-163.374669,0.0002099,2]
[386537641,1758366728396,-163.374669,0.0002099,2]
[386537642,1758366728424,-423.823541,0.0002099,2]
[386537643,1758366728453,-423.823541,0.0002099,2]
[386537644,1758366728481,-423.823541,0.0002099,2]
[386537645,1758366728508,-423.823541,0.0002099,2]
[386537646,1758366728539,-151.0,0.0002099,2]
[386537647,1758366728567,-151.0,0.0002099,2]
[386537648,1758366728595,-153.166076,0.0002099,2]
[386537649,1758366729007,-151.0,0.00021,5]
[386537650,1758366729021,-153.166076,0.00021,5]
[386537651,1758366729035,-941.104624,0.00021,5]
[386537652,1758366737771,-480.0,0.00020885,2]
[386537653,1758366737798,-480.0,0.00020885,2]
[386537654,1758366737828,-1542.99,0.00020888,2]
[386537655,1758366737858,-1168.0,0.00020999,2]
[386537656,1758366737941,-480.0,0.00020885,2]
[386537657,1758366737951,-2178.03,0.00021,5]
[386537660,1758366747758,-480.0,0.00020788,2]
[386537661,1758366747786,-509.17945168,0.00020788,2]
[386537662,1758366747813,-506.94566599,0.00020788,2]
[386537663,1758366747843,-500.0,0.00020788,2]
[386537664,1758366747978,-500.0,0.00020788,2]
[386537665,1758366748218,-537.56640863,0.00020788,2]
[386537666,1758366748248,-461.41126184,0.00020885,2]
[386537667,1758366748278,-480.0,0.00020885,2]
[386537668,1758366748306,-480.0,0.00020887,2]
[386537669,1758366748493,-1089.80442372,0.00021,5]
[386537670,1758366749375,256.9467855,0.00019973,2]
[386537671,1758366751762,1026.75935487,0.00019973,2]
[386537672,1758366755605,221.18217356,0.00020664,2]
[386537673,1758366767822,-480.0,0.00020787,2]
[386537674,1758366767851,-923.92,0.00020788,2]
[386537675,1758366767884,-480.0,0.00020788,2]
[386537676,1758366767913,-480.0,0.00020788,2]
[386537677,1758366767942,-480.0,0.00020788,2]
[386537678,1758366767971,-487.61992681,0.00020788,2]
[386537679,1758366768001,-866.62,0.00020788,2]